[Event "FIDE WYCC Open U14 2023"]
[Site "Montesilvano"]
[Date "2023.11.21"]
[Round "8.7"]
[White "Davudov, Tunar"]
[Black "Kozlovic, Jernej"]
[Result "0-1"]
[ECO "B12"]
[WhiteElo "2000"]
[BlackElo "2263"]
[Annotator "RC"]
[PlyCount "142"]
[EventDate "2023.11.13"]
[EventType "swiss"]
[EventCountry "ITA"]
[SourceTitle "playchess.com"]
[Source "ChessBase"]
[SourceQuality "1"]
[TimeControl "40/5400+30:1800+30"]

1. e4 {[%emt 0:00:15]} c6 {[%emt 0:00:27]} 2. d4 {[%emt 0:00:07]} d5 {[%emt 0:00:08]} 3. e5 {[%emt 0:00:05]} Bf5 {[%emt 0:00:57]} 4. Nd2 {[%emt 0:01:04]} e6 {[%emt 0:01:46]} 5. Nb3 {[%emt 0:01:19]} Nd7 {[%emt 0:01:19]} 6. Nf3 {[%emt 0:01:22]} h6 {[%emt 0:00:45]} 7. Be2 {[%emt 0:01:04]} a6 8. O-O {[%emt 0:03:09]} c5 {[%emt 0:00:43]} 9. Be3 {[%emt 0:11:15]} Rc8 {[%emt 0:01:49]} 10. c3 {[%emt 0:02:39]} c4 {[%emt 0:07:21]} 11. Nbd2 {[%emt 0:05:25]} Bh7 {[%emt 0:02:12]} 12. a4 {[%emt 0:08:30]} b5 {[%emt 0:01:59]} 13. axb5 {[%emt 0:16:46]} axb5 {[%emt 0:00:17]} 14. Ra7 {[%emt 0:10:49]} Ne7 {[%emt 0:08:10]} 15. Rb7 {[%emt 0:10:49]} Rb8 {[%emt 0:02:30]} 16. Rxb8 {[%emt 0:04:18]} Qxb8 {[%emt 0:00:29]} 17. Qa1 {[%emt 0:06:13]} Qb7 {[%emt 0:03:02]} 18. b3 {[%emt 0:03:24]} Nc6 {[%emt 0:01:53]} 19. Qb2 {[%emt 0:02:40]} Qb8 {[%emt 0:09:21]} 20. Ne1 {[%emt 0:02:11]} Be7 {[%emt 0:02:49]} 21. Bd1 {[%emt 0:00:49]} O-O {[%emt 0:01:42]} 22. Bc2 {[%emt 0:00:09]} Qa7 {[%emt 0:03:19]} 23. Bxh7+ {[%emt 0:00:19]} Kxh7 {[%emt 0:00:01]} 24. Nc2 {[%emt 0:00:45]} Ra8 {[%emt 0:01:02]} 25. Ra1 {[%emt 0:00:21]} Qb8 {[%emt 0:00:15]} 26. f4 {[%emt 0:02:41]} Rxa1+ {[%emt 0:05:11]} 27. Qxa1 {[%emt 0:00:07]} Qb7 {[%emt 0:02:40]} 28. b4 {[%emt 0:01:39]} f5 {[%emt 0:02:56]} 29. exf6 {[%emt 0:00:53]} gxf6 {[%emt 0:02:10]} 30. Bf2 {[%emt 0:01:51]} f5 {[%emt 0:03:10]} 31. Qe1 {[%emt 0:00:28]} Nf8 {[%emt 0:00:48]} 32. Nf3 {[%emt 0:01:05]} Bf6 {[%emt 0:02:43]} 33. Ne5 {[%emt 0:00:44]} Ne7 {[%emt 0:05:22]} 34. Bh4 {[%emt 0:00:43]} Ng8 {[%emt 0:01:16]} 35. Ne3 {[%emt 0:01:21]} Qa7 {[%emt 0:02:20]} 36. Bf2 {[%emt 0:00:38]} Bg7 {[%emt 0:02:29]} 37. g4 {[%emt 0:00:17]} fxg4 {[%emt 0:03:14]} 38. Qb1+ {[%emt 0:00:17]} Kh8 {[%emt 0:00:10]} 39. N5xg4 {[%emt 0:00:41]} Nf6 {[%emt 0:18:09]} 40. Nxf6 {[%emt 0:00:00]} Bxf6 {[%emt 0:00:00]} 41. f5 {[%emt 0:05:06]} Bg5 {[%emt 0:03:30]} 42. Ng4 {[%emt 0:07:29]} Qh7 {[%emt 0:11:52]} 43. Ne5 {[%emt 0:08:54]} Bf4 {[%emt 0:13:23]} 44. Ng6+ {[%emt 0:09:33]} Nxg6 {[%emt 0:00:07]} 45. fxg6 {[%emt 0:00:04]} Qe7 {[%emt 0:02:36]} 46. h4 {[%emt 0:01:48]} Qf6 {[%emt 0:03:10]} 47. Kg2 {[%emt 0:01:02]} h5 {[%emt 0:01:34]} 48. Qa1 {[%emt 0:00:50]} Qxg6+ {[%emt 0:00:08]} 49. Kf1 {[%emt 0:00:10]} Qd3+ {[%emt 0:00:30]} 50. Kg2 {[%emt 0:00:14]} Qe4+ {[%emt 0:00:39]} 51. Kg1 {[%emt 0:00:10]} Qg6+ {[%emt 0:00:21]} 52. Kf1 {[%emt 0:00:09]} Qd3+ {[%emt 0:00:39]} 53. Kg2 {[%emt 0:00:08]} Qe4+ {[%emt 0:00:47]} 54. Kg1 {[%emt 0:00:06]} Kg7 {[%emt 0:00:26]} 55. Qa7+ {[%emt 0:00:38]} Kf6 {[%emt 0:00:11]} 56. Qa8 {[%emt 0:01:46]} Qg6+ {[%emt 0:00:16]} 57. Kf1 {[%emt 0:00:05]} Kf5 {[%emt 0:00:19]} 58. Qa2 {[%emt 0:00:48]} Qg4 {[%emt 0:01:15]} 59. Qc2+ {[%emt 0:00:17]} Kf6 {[%emt 0:00:01]} 60. Qh7 {[%emt 0:00:26]} Qg6 {[%emt 0:00:16]} 61. Qh8+ {[%emt 0:01:09]} Kf5 {[%emt 0:00:08]} 62. Qa8 {[%emt 0:00:51]} Kg4 {[%emt 0:01:10]} 63. Qa1 {[%emt 0:00:33]} Qd3+ {[%emt 0:00:51]} 64. Kg1 {[%emt 0:00:04]} Qe2 {[%emt 0:00:48]} 65. Qb1 {[%emt 0:00:56]} Kf3 {[%emt 0:00:27]} 66. Kh1 {[%emt 0:00:30]} Be3 {[%emt 0:00:38]} 67. Qg1 {[%emt 0:00:29]} Bxf2 {[%emt 0:00:29]} 68. Qg2+ {[%emt 0:00:26]} Ke3 {[%emt 0:00:15]} 69. Qg5+ {[%emt 0:00:18]} Kd3 {[%emt 0:00:15]} 70. Qg6+ {[%emt 0:00:15]} Kxc3 {[%emt 0:00:30]} 71. Kh2 {[%emt 0:00:49]} Bxd4+ {[%emt 0:00:13]} 0-1

[Event "FIDE WYCC Open U14 2023"]
[Site "Montesilvano"]
[Date "2023.11.21"]
[Round "8.8"]
[White "Akhmedov, David"]
[Black "Fan, Jingyi"]
[Result "1-0"]
[ECO "B44"]
[WhiteElo "2240"]
[BlackElo "2035"]
[Annotator "RC"]
[PlyCount "77"]
[EventDate "2023.11.13"]
[EventType "swiss"]
[EventCountry "ITA"]
[SourceTitle "playchess.com"]
[Source "ChessBase"]
[SourceQuality "1"]
[TimeControl "40/5400+30:1800+30"]

1. e4 {[%emt 0:00:03]} c5 {[%emt 0:00:08]} 2. Nf3 {[%emt 0:00:04]} e6 {[%emt 0:00:12]} 3. d4 {[%emt 0:01:35]} cxd4 {[%emt 0:00:29]} 4. Nxd4 {[%emt 0:00:02]} Nc6 {[%emt 0:00:09]} 5. Nxc6 {[%emt 0:01:30]} bxc6 {[%emt 0:00:17]} 6. Bd3 {[%emt 0:01:59]} Nf6 {[%emt 0:02:25]} 7. Nd2 {[%emt 0:10:27]} d5 {[%emt 0:04:28]} 8. O-O {[%emt 0:08:19]} Qc7 {[%emt 0:02:43]} 9. c4 {[%emt 0:06:00]} Bd6 {[%emt 0:05:02]} 10. h3 {[%emt 0:03:39]} O-O {[%emt 0:07:44]} 11. b3 {[%emt 0:03:59]} dxe4 {[%emt 0:16:30]} 12. Nxe4 {[%emt 0:00:37]} Nxe4 {[%emt 0:00:08]} 13. Bxe4 {[%emt 0:00:14]} f5 {[%emt 0:00:19]} 14. Bc2 {[%emt 0:03:10]} e5 {[%emt 0:03:24]} 15. Qe2 {[%emt 0:06:50]} c5 {[%emt 0:02:18]} 16. f3 {[%emt 0:09:27]} Bb7 {[%emt 0:07:32]} 17. Be3 {[%emt 0:02:12]} Rae8 {[%emt 0:02:25]} 18. Rad1 {[%emt 0:02:06]} e4 {[%emt 0:12:26]} 19. fxe4 {[%emt 0:00:31]} fxe4 {[%emt 0:00:40]} 20. Qh5 {[%emt 0:09:46]} Bh2+ {[%emt 0:09:13]} 21. Kh1 {[%emt 0:00:01]} Be5 {[%emt 0:00:45]} 22. Rxf8+ {[%emt 0:09:40]} Rxf8 {[%emt 0:01:17]} 23. Qg4 {[%emt 0:02:07]} Qc6 {[%emt 0:01:49]} 24. Qe2 {[%emt 0:01:30]} Qg6 {[%emt 0:09:02]} 25. Qg4 {[%emt 0:06:10]} Qc6 {[%emt 0:02:29]} 26. Qe2 {[%emt 0:06:23]} h6 {[%emt 0:05:21]} 27. Bg1 {[%emt 0:02:36]} Rf3 {[%emt 0:03:09]} 28. Rd8+ {[%emt 0:01:44]} Kf7 {[%emt 0:01:09]} 29. Rd5 {[%emt 0:00:21]} Qf6 {[%emt 0:00:44]} 30. Bxe4 {[%emt 0:00:43]} Rf1 {[%emt 0:00:28]} 31. Rxe5 {[%emt 0:00:30]} Bxe4 {[%emt 0:00:30]} 32. Rxe4 {[%emt 0:01:10]} Qa1 {[%emt 0:00:35]} 33. Re7+ {[%emt 0:00:20]} Kg6 {[%emt 0:00:23]} 34. Qg4+ {[%emt 0:00:20]} Kf6 {[%emt 0:00:07]} 35. Re6+ {[%emt 0:00:34]} Kf7 {[%emt 0:00:03]} 36. Qg6+ {[%emt 0:00:04]} Kg8 {[%emt 0:00:05]} 37. Re8+ {[%emt 0:00:04]} Rf8 {[%emt 0:00:05]} 38. Qe6+ {[%emt 0:00:03]} Kh7 {[%emt 0:00:05]} 39. Rxf8 {[%emt 0:00:05]} 1-0

[Event "FIDE WYCC Open U14 2023"]
[Site "Montesilvano"]
[Date "2023.11.21"]
[Round "8.9"]
[White "Daaevik Wadhawan"]
[Black "Brattgjerd, Isak Vinh"]
[Result "1/2-1/2"]
[ECO "B12"]
[WhiteElo "1810"]
[BlackElo "2235"]
[Annotator "RC"]
[PlyCount "179"]
[EventDate "2023.11.13"]
[EventType "swiss"]
[EventCountry "ITA"]
[SourceTitle "playchess.com"]
[Source "ChessBase"]
[SourceQuality "1"]
[TimeControl "40/5400+30:1800+30"]

1. e4 {[%emt 0:00:41]} c6 {[%emt 0:00:04]} 2. d4 {[%emt 0:00:03]} d5 {[%emt 0:00:04]} 3. e5 {[%emt 0:00:05]} c5 {[%emt 0:00:27]} 4. c3 {[%emt 0:00:07]} Nc6 {[%emt 0:00:10]} 5. Be2 {[%emt 0:00:01]} Bf5 {[%emt 0:15:56]} 6. Nf3 {[%emt 0:00:04]} e6 {[%emt 0:00:03]} 7. O-O {[%emt 0:00:26]} cxd4 {[%emt 0:01:15]} 8. Nxd4 {[%emt 0:00:24]} Nge7 {[%emt 0:00:01]} 9. Bb5 {[%emt 0:02:05]} a6 {[%emt 0:18:27]} 10. Bxc6+ {[%emt 0:03:05]} bxc6 {[%emt 0:00:07]} 11. b4 {[%emt 0:02:58]} Qd7 {[%emt 0:08:37]} 12. Nd2 {[%emt 0:08:49]} Bd3 {[%emt 0:04:21]} 13. Re1 {[%emt 0:02:19]} Nf5 {[%emt 0:01:44]} 14. Nxf5 {[%emt 0:03:19]} Bxf5 {[%emt 0:00:27]} 15. Nb3 {[%emt 0:00:02]} Be7 {[%emt 0:07:27]} 16. Be3 {[%emt 0:01:22]} O-O {[%emt 0:00:26]} 17. a4 {[%emt 0:14:36]} Qc7 {[%emt 0:05:30]} 18. Bc5 {[%emt 0:09:03]} Bxc5 {[%emt 0:04:30]} 19. Nxc5 {[%emt 0:00:09]} a5 {[%emt 0:01:11]} 20. Qd4 {[%emt 0:04:49]} Rfb8 {[%emt 0:02:28]} 21. Ra2 {[%emt 0:01:52]} axb4 {[%emt 0:01:28]} 22. cxb4 {[%emt 0:00:02]} Qb6 {[%emt 0:00:26]} 23. a5 {[%emt 0:12:47]} Qxb4 {[%emt 0:00:15]} 24. Qxb4 {[%emt 0:00:05]} Rxb4 {[%emt 0:00:03]} 25. a6 {[%emt 0:08:00]} Ra7 {[%emt 0:07:36]} 26. f3 {[%emt 0:07:29]} Rb5 {[%emt 0:09:28]} 27. Rc1 {[%emt 0:06:53]} Kf8 {[%emt 0:00:45]} 28. Nb7 {[%emt 0:01:32]} Rb6 {[%emt 0:00:34]} 29. Nd8 {[%emt 0:00:23]} Raxa6 {[%emt 0:01:30]} 30. Rxa6 {[%emt 0:00:27]} Rxa6 {[%emt 0:00:02]} 31. Nxc6 {[%emt 0:00:11]} f6 {[%emt 0:08:31]} 32. Nb8 {[%emt 0:07:39]} Ra4 {[%emt 0:01:15]} 33. Rc8+ {[%emt 0:02:56]} Kf7 {[%emt 0:00:00]} 34. Rc7+ {[%emt 0:01:13]} Kg6 {[%emt 0:00:06]} 35. g4 {[%emt 0:00:09]} Bxg4 {[%emt 0:01:58]} 36. exf6 {[%emt 0:00:17]} gxf6 {[%emt 0:00:01]} 37. fxg4 {[%emt 0:00:01]} Rxg4+ {[%emt 0:00:01]} 38. Kf2 {[%emt 0:00:02]} e5 {[%emt 0:00:41]} 39. Nc6 {[%emt 0:01:37]} d4 {[%emt 0:01:15]} 40. Ne7+ {[%emt 0:00:00]} Kg5 {[%emt 0:00:00]} 41. Nd5 {[%emt 0:00:20]} Rh4 {[%emt 0:04:33]} 42. Kg3 {[%emt 0:09:54]} Rh6 {[%emt 0:01:06]} 43. Rf7 {[%emt 0:09:20]} Kf5 {[%emt 0:01:24]} 44. Rf8 {[%emt 0:01:26]} Rg6+ {[%emt 0:01:33]} 45. Kf2 {[%emt 0:00:22]} Rh6 {[%emt 0:00:05]} 46. Kg3 {[%emt 0:00:41]} Ke6 {[%emt 0:01:07]} 47. Nb4 {[%emt 0:00:49]} Rg6+ {[%emt 0:02:02]} 48. Kf2 {[%emt 0:00:34]} Rg7 {[%emt 0:01:50]} 49. Rb8 {[%emt 0:01:27]} Kf5 {[%emt 0:01:17]} 50. Rb6 {[%emt 0:03:15]} Rd7 {[%emt 0:01:30]} 51. Ke2 {[%emt 0:01:10]} h5 {[%emt 0:00:06]} 52. h3 {[%emt 0:00:57]} Rd8 {[%emt 0:02:33]} 53. Nd3 {[%emt 0:03:04]} Ra8 {[%emt 0:00:59]} 54. Rb5 {[%emt 0:00:30]} Ra2+ 55. Kf3 {[%emt 0:00:04]} Ra3 {[%emt 0:01:51]} 56. Ke2 {[%emt 0:00:04]} Ke4 {[%emt 0:01:43]} 57. Nc5+ {[%emt 0:00:43]} Kf4 {[%emt 0:00:34]} 58. Ne6+ {[%emt 0:03:09]} Kg3 {[%emt 0:01:34]} 59. Nxd4 {[%emt 0:00:10]} exd4 {[%emt 0:00:49]} 60. Rxh5 {[%emt 0:00:02]} Re3+ {[%emt 0:00:54]} 61. Kd2 {[%emt 0:00:08]} Rf3 {[%emt 0:00:35]} 62. Ke2 {[%emt 0:01:53]} d3+ {[%emt 0:01:34]} 63. Kd2 {[%emt 0:00:03]} f5 {[%emt 0:00:14]} 64. Rh8 {[%emt 0:00:22]} Kg2 {[%emt 0:00:50]} 65. h4 {[%emt 0:02:40]} f4 {[%emt 0:00:04]} 66. h5 {[%emt 0:00:01]} Rh3 {[%emt 0:01:06]} 67. h6 {[%emt 0:00:16]} f3 {[%emt 0:01:29]} 68. h7 {[%emt 0:00:06]} Kf2 {[%emt 0:00:10]} 69. Kxd3 {[%emt 0:01:08]} Kf1 {[%emt 0:00:04]} 70. Kd4 {[%emt 0:01:05]} f2 {[%emt 0:00:09]} 71. Kc5 {[%emt 0:00:10]} Rh5+ {[%emt 0:01:57]} 72. Kb4 {[%emt 0:00:36]} Rh4+ {[%emt 0:00:33]} 73. Kc5 {[%emt 0:00:14]} Rh3 {[%emt 0:00:42]} 74. Kb4 {[%emt 0:00:35]} Rh5 {[%emt 0:00:19]} 75. Ka4 {[%emt 0:00:51]} Rh4+ {[%emt 0:05:08]} 76. Ka5 {[%emt 0:00:30]} Rh6 {[%emt 0:00:23]} 77. Kb4 {[%emt 0:00:07]} Rb6+ {[%emt 0:00:08]} 78. Kc3 {[%emt 0:01:22]} Rb7 {[%emt 0:00:23]} 79. Kd2 {[%emt 0:00:20]} Rd7+ {[%emt 0:00:10]} 80. Kc2 {[%emt 0:00:06]} Rf7 {[%emt 0:01:06]} 81. Kc3 {[%emt 0:00:55]} Rc7+ {[%emt 0:00:41]} 82. Kd2 {[%emt 0:00:16]} Re7 {[%emt 0:00:05]} 83. Kd1 {[%emt 0:00:15]} Rd7+ {[%emt 0:00:53]} 84. Kc2 {[%emt 0:00:04]} Rc7+ {[%emt 0:00:03]} 85. Kd2 {[%emt 0:00:19]} Rg7 {[%emt 0:00:07]} 86. Kc2 {[%emt 0:00:22]} Rd7 {[%emt 0:01:10]} 87. Kc3 {[%emt 0:00:22]} Rb7 {[%emt 0:02:18]} 88. Kc2 {[%emt 0:00:23]} Rc7+ {[%emt 0:01:29]} 89. Kd2 {[%emt 0:00:04]} Rg7 {[%emt 0:00:07]} 90. Kc2 {[%emt 0:00:19]} 1/2-1/2

[Event "FIDE WYCC Open U14 2023"]
[Site "Montesilvano"]
[Date "2023.11.21"]
[Round "8.10"]
[White "Mamedov, Edgar"]
[Black "Radzimski, Antoni"]
[Result "1-0"]
[ECO "E16"]
[WhiteElo "2234"]
[BlackElo "1904"]
[Annotator "RC"]
[PlyCount "69"]
[EventDate "2023.11.13"]
[EventType "swiss"]
[EventCountry "ITA"]
[SourceTitle "playchess.com"]
[Source "ChessBase"]
[SourceQuality "1"]
[TimeControl "40/5400+30:1800+30"]

1. d4 {[%emt 0:00:06]} Nf6 {[%emt 0:00:15]} 2. c4 {[%emt 0:00:12]} e6 {[%emt 0:00:31]} 3. Nf3 {[%emt 0:00:11]} Bb4+ {[%emt 0:00:06]} 4. Bd2 {[%emt 0:00:31]} Qe7 {[%emt 0:00:12]} 5. e3 {[%emt 0:01:49]} b6 {[%emt 0:02:04]} 6. Bd3 {[%emt 0:00:28]} Bb7 {[%emt 0:01:07]} 7. O-O {[%emt 0:00:19]} Bxd2 {[%emt 0:01:53]} 8. Nbxd2 {[%emt 0:03:20]} d6 {[%emt 0:02:15]} 9. e4 {[%emt 0:01:14]} O-O {[%emt 0:06:02]} 10. Qc2 {[%emt 0:02:49]} e5 {[%emt 0:03:53]} 11. d5 {[%emt 0:00:18]} a5 {[%emt 0:04:51]} 12. b3 {[%emt 0:04:33]} Nbd7 {[%emt 0:02:53]} 13. a3 {[%emt 0:03:05]} g6 {[%emt 0:09:48]} 14. b4 {[%emt 0:04:03]} Nh5 {[%emt 0:04:02]} 15. Rfe1 {[%emt 0:01:41]} Ng7 {[%emt 0:03:38]} 16. Nb3 {[%emt 0:26:35]} f5 {[%emt 0:08:43]} 17. Nfd2 {[%emt 0:08:25]} f4 {[%emt 0:04:33]} 18. c5 {[%emt 0:08:04]} a4 {[%emt 0:04:08]} 19. c6 {[%emt 0:00:25]} axb3 {[%emt 0:02:20]} 20. Qxb3 {[%emt 0:04:47]} Bc8 {[%emt 0:02:03]} 21. cxd7 {[%emt 0:00:16]} Bxd7 {[%emt 0:00:22]} 22. a4 {[%emt 0:05:45]} g5 {[%emt 0:02:35]} 23. a5 {[%emt 0:02:06]} bxa5 {[%emt 0:01:28]} 24. bxa5 {[%emt 0:00:22]} Ra7 {[%emt 0:02:35]} 25. a6 {[%emt 0:02:19]} g4 {[%emt 0:01:46]} 26. Bf1 {[%emt 0:00:14]} Qd8 {[%emt 0:08:15]} 27. Reb1 {[%emt 0:01:57]} h5 {[%emt 0:01:39]} 28. Qc3 {[%emt 0:01:12]} Qa8 {[%emt 0:02:22]} 29. Nc4 {[%emt 0:01:07]} h4 {[%emt 0:10:09]} 30. Na5 {[%emt 0:02:17]} g3 {[%emt 0:00:36]} 31. hxg3 {[%emt 0:10:06]} fxg3 {[%emt 0:01:12]} 32. fxg3 {[%emt 0:00:21]} h3 {[%emt 0:01:50]} 33. Nc6 {[%emt 0:02:07]} hxg2 {[%emt 0:00:07]} 34. Kxg2 {[%emt 0:00:24]} Bxc6 35. dxc6 {[%emt 0:00:15]} 1-0

[Event "FIDE WYCC Open U14 2023"]
[Site "Montesilvano"]
[Date "2023.11.21"]
[Round "8.11"]
[White "Asikainen, Eeli"]
[Black "Uskov, Artem"]
[Result "0-1"]
[ECO "B47"]
[WhiteElo "2081"]
[BlackElo "2380"]
[Annotator "RC"]
[PlyCount "160"]
[EventDate "2023.11.13"]
[EventType "swiss"]
[EventCountry "ITA"]
[SourceTitle "playchess.com"]
[Source "ChessBase"]
[SourceQuality "1"]
[TimeControl "40/5400+30:1800+30"]

1. e4 {[%emt 0:00:02]} c5 {[%emt 0:01:17]} 2. Nf3 {[%emt 0:00:06]} e6 {[%emt 0:00:04]} 3. d4 {[%emt 0:00:05]} cxd4 {[%emt 0:00:04]} 4. Nxd4 {[%emt 0:00:05]} Nc6 {[%emt 0:00:03]} 5. Nc3 {[%emt 0:00:09]} Qc7 {[%emt 0:00:04]} 6. g4 {[%emt 0:00:21]} h6 {[%emt 0:00:07]} 7. Be3 {[%emt 0:01:02]} Nf6 {[%emt 0:00:11]} 8. a3 {[%emt 0:00:33]} a6 {[%emt 0:00:23]} 9. h4 {[%emt 0:03:00]} b5 {[%emt 0:11:46]} 10. Nxc6 {[%emt 0:10:35]} Qxc6 {[%emt 0:01:01]} 11. Bg2 {[%emt 0:20:09]} b4 {[%emt 0:20:32]} 12. axb4 {[%emt 0:07:16]} Bxb4 {[%emt 0:00:41]} 13. Qd4 {[%emt 0:03:47]} Bxc3+ {[%emt 0:07:28]} 14. bxc3 {[%emt 0:02:33]} d6 {[%emt 0:00:21]} 15. Rd1 {[%emt 0:17:07]} e5 {[%emt 0:05:19]} 16. Qxd6 {[%emt 0:00:49]} Qxd6 {[%emt 0:00:18]} 17. Rxd6 {[%emt 0:00:06]} Nxg4 {[%emt 0:01:05]} 18. Bb6 {[%emt 0:04:00]} O-O {[%emt 0:00:56]} 19. O-O {[%emt 0:03:14]} Nf6 {[%emt 0:01:14]} 20. Rfd1 {[%emt 0:02:42]} Be6 {[%emt 0:01:56]} 21. f3 {[%emt 0:01:29]} a5 {[%emt 0:01:27]} 22. Ra1 {[%emt 0:08:52]} a4 {[%emt 0:00:27]} 23. Bc5 {[%emt 0:01:46]} Rfc8 {[%emt 0:00:11]} 24. Bb4 {[%emt 0:00:20]} a3 {[%emt 0:03:55]} 25. Rxa3 {[%emt 0:02:19]} Rxa3 {[%emt 0:00:06]} 26. Bxa3 {[%emt 0:00:03]} Rxc3 {[%emt 0:00:11]} 27. Bb2 {[%emt 0:00:14]} Rc5 {[%emt 0:00:17]} 28. Rd2 {[%emt 0:01:02]} Nd7 {[%emt 0:01:05]} 29. Bf1 {[%emt 0:02:08]} Kh7 {[%emt 0:01:32]} 30. Kf2 {[%emt 0:00:23]} Nb6 {[%emt 0:03:05]} 31. Bd3 {[%emt 0:04:05]} Bc4 {[%emt 0:02:05]} 32. Bxc4 {[%emt 0:04:12]} Nxc4 {[%emt 0:00:06]} 33. Rd5 {[%emt 0:00:05]} Rxd5 {[%emt 0:02:26]} 34. exd5 {[%emt 0:00:06]} Kg6 {[%emt 0:00:18]} 35. Bc3 {[%emt 0:01:27]} Kf5 {[%emt 0:01:08]} 36. Ke2 {[%emt 0:01:04]} f6 {[%emt 0:02:02]} 37. Bb4 {[%emt 0:00:50]} Nb6 {[%emt 0:00:03]} 38. Bf8 {[%emt 0:00:39]} g5 {[%emt 0:00:50]} 39. h5 {[%emt 0:00:30]} Nxd5 {[%emt 0:00:07]} 40. Bxh6 {[%emt 0:00:00]} Nf4+ {[%emt 0:00:00]} 41. Ke3 {[%emt 0:01:27]} Nxh5 {[%emt 0:02:26]} 42. c4 {[%emt 0:01:00]} Kg6 {[%emt 0:02:48]} 43. Bf8 {[%emt 0:00:08]} Kf7 {[%emt 0:00:03]} 44. Ba3 {[%emt 0:01:05]} Ke6 {[%emt 0:00:06]} 45. Bc1 {[%emt 0:00:51]} Ng3 {[%emt 0:00:13]} 46. Bb2 {[%emt 0:00:53]} Nf5+ {[%emt 0:00:07]} 47. Kd3 {[%emt 0:00:16]} Nd6 {[%emt 0:00:21]} 48. Bc1 {[%emt 0:00:24]} Nb7 {[%emt 0:00:35]} 49. Be3 {[%emt 0:00:14]} Na5 {[%emt 0:01:06]} 50. Kc3 {[%emt 0:00:23]} Nc6 {[%emt 0:00:04]} 51. Kd3 {[%emt 0:00:10]} Kf5 {[%emt 0:00:15]} 52. Bc1 {[%emt 0:01:14]} Nd4 {[%emt 0:00:07]} 53. Ke3 {[%emt 0:00:11]} Ke6 {[%emt 0:00:19]} 54. Bb2 {[%emt 0:00:24]} Nc6 {[%emt 0:00:05]} 55. Bc1 {[%emt 0:00:17]} Nb4 {[%emt 0:02:11]} 56. Bd2 {[%emt 0:00:28]} Na6 {[%emt 0:00:48]} 57. Bc1 {[%emt 0:00:19]} Nc5 {[%emt 0:00:28]} 58. Ba3 {[%emt 0:00:37]} Kd6 {[%emt 0:01:00]} 59. Bb4 {[%emt 0:00:36]} f5 {[%emt 0:00:17]} 60. Ba3 {[%emt 0:01:20]} Kc6 {[%emt 0:01:22]} 61. Bb2 {[%emt 0:02:46]} Nd7 {[%emt 0:07:50]} 62. Ba3 {[%emt 0:00:27]} Nf6 {[%emt 0:00:30]} 63. Be7 {[%emt 0:01:10]} Nh7 {[%emt 0:00:07]} 64. Ba3 {[%emt 0:00:48]} Kd7 {[%emt 0:00:59]} 65. Kf2 {[%emt 0:00:33]} Ke6 {[%emt 0:00:07]} 66. Bc1 {[%emt 0:00:18]} f4 {[%emt 0:00:37]} 67. Ba3 {[%emt 0:00:40]} Nf6 {[%emt 0:00:04]} 68. Bf8 {[%emt 0:00:32]} Nd7 {[%emt 0:00:33]} 69. Bb4 {[%emt 0:00:19]} Nb6 {[%emt 0:00:37]} 70. c5 {[%emt 0:00:22]} Nd5 {[%emt 0:00:05]} 71. Ba5 {[%emt 0:00:05]} Ne7 {[%emt 0:01:50]} 72. Ke2 {[%emt 0:00:45]} Nc6 {[%emt 0:00:08]} 73. Bc7 {[%emt 0:00:15]} Kd5 {[%emt 0:02:14]} 74. Bd6 {[%emt 0:00:55]} Ke6 {[%emt 0:01:01]} 75. Bf8 {[%emt 0:02:01]} Kf5 {[%emt 0:01:35]} 76. Kf2 {[%emt 0:00:18]} g4 {[%emt 0:00:13]} 77. fxg4+ {[%emt 0:00:13]} Kxg4 {[%emt 0:00:02]} 78. Bd6 {[%emt 0:01:06]} Kf5 {[%emt 0:00:38]} 79. Bc7 {[%emt 0:00:27]} e4 {[%emt 0:00:13]} 80. Bd6 {[%emt 0:00:22]} e3+ {[%emt 0:00:05]} 0-1

[Event "FIDE WYCC Open U14 2023"]
[Site "Montesilvano"]
[Date "2023.11.21"]
[Round "8.12"]
[White "Agasarov, Benik"]
[Black "Sommer, Justus"]
[Result "1-0"]
[ECO "C77"]
[WhiteElo "2360"]
[BlackElo "2013"]
[Annotator "RC"]
[PlyCount "75"]
[EventDate "2023.11.13"]
[EventType "swiss"]
[EventCountry "ITA"]
[SourceTitle "playchess.com"]
[Source "ChessBase"]
[SourceQuality "1"]
[TimeControl "40/5400+30:1800+30"]

1. e4 {[%emt 0:00:46]} e5 {[%emt 0:00:10]} 2. Nf3 {[%emt 0:00:17]} Nc6 {[%emt 0:00:11]} 3. Bb5 {[%emt 0:00:15]} a6 {[%emt 0:00:09]} 4. Ba4 {[%emt 0:00:08]} Nf6 {[%emt 0:00:08]} 5. d3 {[%emt 0:00:14]} d6 {[%emt 0:01:16]} 6. c3 {[%emt 0:00:15]} g6 {[%emt 0:01:23]} 7. O-O {[%emt 0:00:14]} Bg7 {[%emt 0:01:25]} 8. h3 {[%emt 0:00:22]} O-O {[%emt 0:01:11]} 9. Re1 {[%emt 0:00:07]} b5 {[%emt 0:04:45]} 10. Bc2 {[%emt 0:02:25]} Re8 {[%emt 0:00:43]} 11. Be3 {[%emt 0:01:34]} Bb7 {[%emt 0:04:34]} 12. Nbd2 {[%emt 0:00:19]} Qd7 {[%emt 0:02:09]} 13. a4 {[%emt 0:00:23]} Nd8 {[%emt 0:10:01]} 14. b4 {[%emt 0:02:52]} Ne6 {[%emt 0:02:45]} 15. Nb3 {[%emt 0:08:25]} Rac8 {[%emt 0:09:59]} 16. axb5 {[%emt 0:17:15]} axb5 {[%emt 0:00:14]} 17. Qb1 {[%emt 0:08:26]} Nh5 {[%emt 0:05:26]} 18. Ra7 {[%emt 0:00:50]} Ba8 {[%emt 0:01:42]} 19. d4 {[%emt 0:01:22]} exd4 {[%emt 0:03:46]} 20. cxd4 {[%emt 0:01:10]} d5 {[%emt 0:13:47]} 21. e5 {[%emt 0:01:00]} f5 {[%emt 0:03:17]} 22. exf6 {[%emt 0:06:57]} Nxf6 {[%emt 0:01:27]} 23. Ne5 {[%emt 0:00:43]} Qd6 {[%emt 0:02:24]} 24. Nc5 {[%emt 0:00:25]} Qf8 {[%emt 0:12:05]} 25. Qa2 {[%emt 0:01:08]} Nxc5 {[%emt 0:01:26]} 26. bxc5 {[%emt 0:00:07]} Nh5 {[%emt 0:03:22]} 27. Rxa8 {[%emt 0:02:18]} Rxa8 {[%emt 0:00:25]} 28. Qxd5+ {[%emt 0:00:06]} Kh8 {[%emt 0:00:05]} 29. Nf7+ {[%emt 0:00:52]} Kg8 {[%emt 0:00:07]} 30. Nd8+ {[%emt 0:06:18]} Kh8 {[%emt 0:00:08]} 31. Qxa8 {[%emt 0:00:06]} Rxd8 {[%emt 0:00:10]} 32. Qc6 {[%emt 0:00:06]} Qe8 {[%emt 0:04:36]} 33. Qxc7 {[%emt 0:01:22]} Rxd4 {[%emt 0:00:34]} 34. c6 {[%emt 0:04:37]} Nf6 {[%emt 0:05:35]} 35. Bxd4 {[%emt 0:01:14]} Qxe1+ {[%emt 0:00:08]} 36. Kh2 {[%emt 0:00:01]} Qe8 {[%emt 0:01:40]} 37. Qd6 {[%emt 0:00:08]} Nh5 {[%emt 0:03:34]} 38. c7 {[%emt 0:00:19]} 1-0